lending/lending_fUSD_20251015
["ID","MTS","AMOUNT","RATE_DAILY","PERIOD"]
[391304827,1760489432376,-500.0,0.00014973,2]
[391304828,1760489432388,-500.0,0.00014973,2]
[391304829,1760489432401,-500.0,0.00014973,2]
[391304830,1760489432411,-500.0,0.00014973,2]
[391304831,1760489432420,-174.67372788,0.00014973,2]
[391304832,1760489432432,-500.42508604,0.00014973,2]
[391304833,1760489432442,-500.0,0.00014973,2]
[391304834,1760489432451,-213.82584034,0.00014973,2]
[391304835,1760489432460,-160.9410454,0.00014973,2]
[391304836,1760489432469,-500.49812346,0.00014973,2]
[391304837,1760489432479,-500.0,0.00014973,2]
[391304838,1760489432488,-500.0,0.00014973,2]
[391304839,1760489432497,-500.0,0.00014973,2]
[391304840,1760489432506,-374.56932444,0.00014973,2]
[391304841,1760489432515,-500.0,0.00014973,2]
[391304842,1760489432524,-500.0,0.00014973,2]
[391304843,1760489432533,-500.0,0.00014973,2]
[391304844,1760489432542,-500.0,0.00014973,2]
[391304845,1760489432551,-166.67725412,0.00014973,2]
[391304846,1760489432560,-500.0,0.00014973,2]
[391304847,1760489432569,-177.29580073,0.00014973,2]
[391304848,1760489432578,-2805.3539,0.0001498,2]
[391304849,1760489432587,-219.35,0.00014988,2]
[391304850,1760489432596,-219.35,0.00014988,2]
[391304851,1760489432605,-219.35,0.00014988,2]
[391304852,1760489432614,-219.35,0.00014988,2]
[391304853,1760489432623,-219.35,0.00014988,2]
[391304854,1760489432632,-165.58082001,0.0001499,2]
[391304855,1760489432646,-165.58082001,0.0001499,2]
[391304856,1760489432655,-151.0,0.00014995,2]
[391304857,1760489432665,-500.0,0.00014997,2]
[391304858,1760489432674,-500.0,0.00014997,2]
[391304859,1760489432683,-500.0,0.00014997,2]
[391304860,1760489432692,-500.0,0.00014997,2]
[391304861,1760489432701,-500.0,0.00014997,2]
[391304862,1760489432711,-500.0,0.00014997,2]
[391304863,1760489432720,-500.0,0.00014997,2]
[391304864,1760489432729,-500.0,0.00014997,2]
[391304865,1760489432739,-500.0,0.00014997,2]
[391304866,1760489432748,-500.0,0.00014997,2]
[391304867,1760489432759,-500.0,0.00014997,2]
[391304868,1760489432768,-500.0,0.00014997,2]
[391304869,1760489432778,-500.0,0.00014997,2]
[391304870,1760489432787,-500.0,0.00014997,2]
[391304871,1760489432796,-500.0,0.00014997,2]
[391304872,1760489432806,-500.0,0.00014997,2]
[391304873,1760489432815,-500.0,0.00014997,2]
[391304874,1760489432825,-500.0,0.00014997,2]
[391304875,1760489432834,-500.0,0.00014997,2]
[391304876,1760489432843,-500.0,0.00014997,2]
[391304877,1760489432852,-500.0,0.00014997,2]
[391304878,1760489432862,-500.0,0.00014997,2]
[391304879,1760489432871,-500.0,0.00014997,2]
[391304880,1760489432880,-500.0,0.00014997,2]
[391304881,1760489432892,-500.0,0.00014997,2]
[391304882,1760489432902,-500.0,0.00014997,2]
[391304883,1760489432911,-500.0,0.00014997,2]
[391304884,1760489432920,-500.0,0.00014997,2]
[391304885,1760489432930,-500.0,0.00014997,2]
[391304886,1760489432939,-500.0,0.00014997,2]
[391304887,1760489432948,-500.0,0.00014997,2]
[391304888,1760489432957,-500.0,0.00014997,2]
[391304889,1760489432967,-500.0,0.00014997,2]
[391304890,1760489432976,-500.0,0.00014997,2]
[391304891,1760489432985,-450.72561557,0.00014997,2]
[391304892,1760489432994,-151.0,0.00014997,2]
[391304893,1760489433003,-267115.5185579,0.00014998,2]
[391304894,1760489433012,-150.2588171,0.00014998,2]
[391304895,1760489433021,-3290.8542874,0.00014998,2]
[391304896,1760489433030,-150.0,0.00014998,2]
[391304897,1760489433040,-200.0,0.00014998,2]
[391304898,1760489433049,-150.0,0.00014998,2]
[391304899,1760489433058,-150.0,0.00014998,2]
[391304900,1760489433068,-500.0,0.00014998,2]
[391304901,1760489433077,-150.0,0.00014998,2]
[391304902,1760489433086,-150.0,0.00014998,2]
[391304903,1760489433096,-150.0,0.00014998,2]
[391304904,1760489433107,-150.0,0.00014998,2]
[391304905,1760489433118,-150.0,0.00014998,2]
[391304906,1760489433127,-150.0,0.00014998,2]
[391304907,1760489433140,-150.0,0.00014998,2]
[391304908,1760489433150,-125800.6230562,0.00014998,2]
[391304909,1760489433160,-500.0,0.00014998,2]
[391304910,1760489433169,-3104.325008,0.00014998,2]
[391304911,1760489433179,-500.0,0.00014998,2]
[391304912,1760489433188,-500.0,0.00014998,2]
[391304913,1760489433199,-1188.0,0.00014998,2]
[391304914,1760489433208,-150.0,0.00014998,2]
[391304915,1760489433217,-500.0,0.00014998,2]
[391304916,1760489433227,-500.0,0.00014998,2]
[391304917,1760489433237,-500.0,0.00014998,2]
[391304918,1760489433247,-150.0,0.00014998,2]
[391304919,1760489433257,-500.0,0.00014998,2]
[391304920,1760489433266,-274.74773441,0.00014999,2]
[391304921,1760489433282,-150.0,0.00014999,2]
[391304922,1760489433298,-450.0,0.00014999,2]
[391304923,1760489433308,-2300.09,0.00014999,2]
[391304924,1760489433317,-155.0,0.00014999,2]
[391304925,1760489433326,-150.0,0.00014999,2]
[391304926,1760489433335,-1740.0,0.00015,2]
[391304927,1760489433343,-648219.54976296,0.00015,2]
[391304928,1760489433360,-1603.77847889,0.00015,2]
[391304929,1760489433396,-1367.74106718,0.00015,2]
[391304930,1760489433407,-1375.58837666,0.00015,2]
[391304931,1760489433418,-2327.98799914,0.00015,2]
[391304932,1760489433429,-1563.28726667,0.00015,2]
[391304933,1760489433440,-1106.89613506,0.00015,2]
[391304934,1760489433450,-2150.13,0.00015,2]
[391304935,1760489433461,-506.58,0.00015,2]
[391304936,1760489433472,-139091.32266244,0.00015,2]
[391304937,1760489433483,-331240.34155515,0.00015,2]
[391304938,1760489433558,-745.58750495,0.00015,2]
[391304939,1760489433569,-364.9999958,0.00015,2]
[391304940,1760489433580,-1000.13225756,0.00015,2]
[391304941,1760489433590,-2436.325,0.00015,2]
[391304942,1760489433620,-344.81,0.00015,2]
[391304943,1760489433630,-840.82494719,0.00015,2]
[391304944,1760489433644,-10646.33046805,0.00015,2]
[391304945,1760489433655,-8352.69195696,0.00015,2]
[391304946,1760489433666,-10633.37959752,0.00015,2]
[391304947,1760489433685,-2267.44960489,0.00015,2]
[391304948,1760489433696,-538.0,0.00015,2]
[391305015,1760489438490,-471.87366345,0.00015,2]
[391305016,1760489438666,-1374.20020265,0.00015,2]
[391305017,1760489439049,-527.03461748,0.00015,2]
[391305018,1760489439060,-2864.08186444,0.00015,2]
[391305019,1760489439113,-5457.0611677,0.00015,2]
[391305021,1760489440748,-4045.39821024,0.00015,2]
[391305022,1760489440830,-566.5,0.00015,2]
[391305023,1760489440867,-33944.9942782,0.00015,2]
[391305024,1760489440879,-1339915.54821504,0.00015,2]
[391305025,1760489440891,-3145.11315258,0.00015,2]
[391305026,1760489440904,-1445.52786979,0.00015,2]
[391305027,1760489440934,-665.23,0.00015,2]
[391305028,1760489440945,-4033.06440117,0.00015,2]
[391305029,1760489440956,-8575.08337455,0.00015,2]
[391305030,1760489440968,-4128.63986883,0.00015,2]
[391305031,1760489440979,-4432.26839026,0.00015,2]
[391305032,1760489440990,-38173.71201556,0.00015,2]
[391305033,1760489441001,-1363.68834929,0.00015,2]
[391305034,1760489441012,-11958.9131768,0.00015,2]
[391305035,1760489441023,-3829.98099585,0.00015,2]
[391305036,1760489441034,-28460.52991235,0.00015,2]
[391305037,1760489441045,-71726.40361439,0.00015,2]
[391305038,1760489441056,-7528.75,0.00015,2]
[391305039,1760489441067,-162855.54689874,0.00015,2]
[391305040,1760489441077,-1115.90003394,0.00015,2]
[391305041,1760489441126,-478.11759999,0.00015,2]
[391305042,1760489441250,-1.6e-07,0.00015,2]
[391305043,1760489441280,1821.196,0.00030455,60]
[391305075,1760489442730,-24721.28672805,0.00015,2]
[391305076,1760489442741,-336.33584654,0.00015,2]
[391305077,1760489442752,-1571.83361721,0.00015,2]
[391305078,1760489442763,-5252.29352714,0.00015,2]
[391305079,1760489442822,-56659.99999999,0.00015,2]
[391305080,1760489442851,-560.47152291,0.00015,2]
[391305081,1760489442862,-6855.90067227,0.00015,2]
[391305082,1760489442873,-1874.09196623,0.00015,2]
[391305084,1760489442961,-1180.02267107,0.00015,2]
[391305085,1760489443376,-263.58446541,0.00015,2]
[391305086,1760489443387,-636.41553459,0.00015,2]
[391305093,1760489445438,-1001.59200002,0.00015,2]
[391305133,1760489460274,1000.0,0.00030455,60]
[391305134,1760489464599,200.0,0.00030455,120]
[391305135,1760489465406,2000.0,0.00030455,60]
[391305143,1760489609734,432.34899032,0.00030455,120]
[391305144,1760489623208,203.519,0.00030455,120]
[391305145,1760489669055,1000.0,0.00030455,60]
[391305146,1760489763064,200.0,0.00030455,120]
[391305147,1760490067418,200.0,0.00030412,120]
[391305148,1760490207474,9536.51006552,0.00030413,120]
[391305149,1760490237522,3155.03825943,0.00030413,120]
[391305151,1760490363815,200.0,0.00030413,120]
[391305261,1760490605902,2893.14624,0.00030413,60]
[391305262,1760490606056,2893.14624,0.00030413,60]
[391305263,1760490606485,2893.14624,0.00030413,60]
[391305264,1760490609803,2893.14624,0.00030413,60]
[391305265,1760490610238,2893.14624,0.00030413,60]
[391305276,1760490632003,-288.209999,0.00013504,2]
[391305277,1760490632033,-727.69814,0.00013504,2]
[391305278,1760490632042,-300.0,0.00013572,2]
[391305279,1760490632051,-300.0,0.00013572,2]
[391305280,1760490632062,-300.0,0.00013572,2]
[391305281,1760490632071,-1200.0,0.00013572,2]
[391305282,1760490632080,-804.0668121,0.00013573,2]
[391305283,1760490632092,-871.0,0.00013573,2]
[391305284,1760490632103,-4520.00000004,0.00013573,2]
[391305285,1760490632113,-11288.31557967,0.00013573,2]
[391305286,1760490632124,-829.44760819,0.00013573,2]
[391305287,1760490632134,-182.09,0.00013592,2]
[391305288,1760490632143,-200.0,0.00013699,2]
[391305289,1760490632153,-878.03,0.00013699,2]
[391305290,1760490632164,-2500.0,0.00013708,2]
[391305291,1760490632174,-1556.33,0.00013736,2]
[391305292,1760490632183,-250.0,0.00013883,2]
[391305293,1760490632193,-200.0,0.0001392,2]
[391305294,1760490632202,-247.0,0.00013946,2]
[391305295,1760490632211,-6082.14,0.00013948,2]
[391305296,1760490632221,-1000.0,0.00013964,2]
[391305297,1760490632230,-1202.26749893,0.00013964,2]
[391305298,1760490632305,-1797.73250107,0.00013964,2]
[391305299,1760490632315,-160.26,0.00014,2]
[391305300,1760490632324,-724.87921847,0.00014028,2]
[391305301,1760490632335,-455.23217681,0.00014028,2]
[391305302,1760490632346,-3053.47011264,0.00014028,2]
[391305303,1760490632357,-1605.89447669,0.00014028,2]
[391305306,1760490632369,-4595.60667368,0.00014028,2]
[391305308,1760490632380,-266.92376967,0.00014028,2]
[391305329,1760490638176,-4358.55357204,0.00014028,2]
[391305330,1760490638187,-1100.0,0.00014238,2]
[391305331,1760490638197,-322.6107,0.00014249,2]
[391305332,1760490638207,-721.12765535,0.00014249,2]
[391305333,1760490638216,-182.09,0.00014347,2]
[391305334,1760490638226,-166.85,0.0001452,2]
[391305335,1760490638236,-168.0,0.00014603,2]
[391305336,1760490638246,-442.0,0.0001461,2]
[391305337,1760490638256,-442.0,0.00014622,2]
[391305338,1760490638266,-538.49805296,0.00014634,2]
[391305339,1760490638276,-200.0,0.00014673,2]
[391305340,1760490638285,-168.0,0.00014768,2]
[391305341,1760490638294,-150.0,0.00014768,2]
[391305342,1760490638304,-442.0,0.00014837,2]
[391305343,1760490638313,-168.0,0.00014841,2]
[391305344,1760490638323,-1870.23593,0.0001485,2]
[391305345,1760490638333,-420.0,0.00014876,2]
[391305346,1760490638343,-420.0,0.00014876,2]
[391305347,1760490638352,-200.0,0.0001488,2]
[391305348,1760490638362,-5800.0,0.00014891,2]
[391305349,1760490638372,-1915.03408965,0.000149,2]
[391305350,1760490638596,-2798.75877319,0.000149,2]
[391305351,1760490638608,-286.20713716,0.000149,2]
[391305352,1760490638618,-415.46426664,0.000149,2]
[391305353,1760490638628,-214.59715666,0.000149,2]
[391305354,1760490638638,-6937.45875237,0.000149,2]
[391305355,1760490638648,-6576.89513712,0.000149,2]
[391305356,1760490638657,-189.00810401,0.000149,2]
[391305357,1760490638667,-5800.0,0.000149,2]
[391305358,1760490638677,-1680.0,0.0001493,2]
[391305359,1760490638686,-2500.0,0.00014935,2]
[391305360,1760490638696,-500.0,0.00014973,2]
[391305361,1760490638705,-500.0,0.00014973,2]
[391305362,1760490638715,-500.0,0.00014973,2]
[391305363,1760490638724,-500.0,0.00014973,2]
[391305364,1760490638734,-500.0,0.00014973,2]
[391305365,1760490638743,-500.0,0.00014973,2]
[391305366,1760490638753,-312.38795217,0.00014973,2]
[391305367,1760490638762,-500.0,0.00014973,2]
[391305368,1760490638772,-500.0,0.00014973,2]
[391305369,1760490638782,-500.0,0.00014973,2]
[391305370,1760490638792,-500.0,0.00014973,2]
[391305371,1760490638802,-252.85605304,0.00014979,2]
[391305372,1760490638813,-510.60929904,0.00014979,2]
[391305373,1760490638823,-173.65693531,0.00014979,2]
[391305374,1760490638833,-500.0,0.00014979,2]
[391305375,1760490638842,-500.0,0.00014979,2]
[391305376,1760490638852,-484.62476463,0.00014979,2]
[391305377,1760490638862,-228.81664965,0.00014979,2]
[391305378,1760490638872,-267.11704425,0.00014979,2]
[391305379,1760490638883,-500.0,0.00014979,2]
[391305380,1760490638893,-500.0,0.00014979,2]
[391305381,1760490638903,-500.0,0.00014979,2]
[391305382,1760490638914,-500.0,0.00014979,2]
[391305383,1760490638923,-435.81671942,0.00014979,2]
[391305384,1760490638936,-64.18328058,0.00014979,2]
[391305385,1760490638946,-461.81985218,0.00014979,2]
[391305386,1760490638956,-217.97998357,0.00014979,2]
[391305387,1760490638966,-2031.0,0.0001498,2]
[391305388,1760490638977,-5156.54519891,0.0001498,2]
[391305406,1760490641108,-409.51204815,0.0001498,2]
[391305407,1760490641291,-415447.9119204,0.0001498,2]
[391305408,1760490641302,-44677.86544873,0.0001498,2]
[391305409,1760490641484,-280518.94479903,0.0001498,2]
[391305410,1760490641499,-8308.96565456,0.0001498,2]
[391305418,1760490643275,-599.74363431,0.0001498,2]
[391305419,1760490643331,-22802.0,0.0001498,2]
[391305420,1760490643365,-69527.42385401,0.0001498,2]
[391305421,1760490643376,-25304.71960635,0.0001498,2]
[391305422,1760490643521,-407941.36596792,0.0001498,2]
[391305430,1760490646204,-7913.78477348,0.0001498,2]
[391305438,1760490646405,-1100.6148895,0.0001498,2]
[391305439,1760490646416,-979.64195365,0.0001498,2]
[391305440,1760490646489,-3622.84578006,0.0001498,2]
[391305441,1760490646500,-6094.79019999,0.0001498,2]
[391305442,1760490661807,200.0,0.00030413,120]
[391305444,1760490962986,200.0,0.00030414,120]
[391305445,1760491004015,4055.0,0.00027397,120]
[391305447,1760491165052,1183.0,0.00027397,120]
[391305448,1760491263345,200.0,0.00030399,120]
[391305449,1760491363346,154.51,6.833e-05,2]
[391305450,1760491363738,154.51,7.358e-05,2]
[391305451,1760491363928,154.51,7.884e-05,2]
[391305452,1760491364579,154.51,8.409e-05,2]
[391305453,1760491365031,154.51,8.935e-05,2]
[391305454,1760491365943,154.51,9.461e-05,2]
[391305455,1760491366132,154.51,9.986e-05,2]
[391305456,1760491366309,154.51,0.00010512,2]
[391305457,1760491366822,154.51,0.00011037,2]
[391305458,1760491366972,154.51,0.00011563,2]
[391305459,1760491367224,154.51,0.00012089,2]
[391305460,1760491367481,154.51,0.00012614,2]
[391305461,1760491422310,426.15606968,0.00027397,120]
[391305463,1760491523108,200.0,0.00030399,120]
[391305464,1760491547902,5784.63106293,0.00030399,60]
[391305465,1760491557152,1000.0,0.00030399,120]
[391305466,1760491561922,200.0,0.00030399,120]
[391305469,1760491602070,4055.0,0.00027397,120]
[391305478,1760491817267,152.65157775,0.00030399,120]
[391305482,1760491834474,-154.51,0.0001314,2]
[391305483,1760491834483,-845.49,0.00013205,2]
[391305484,1760491834557,-720.72493064,0.00013205,2]
[391305485,1760491834568,-433.78506936,0.00013205,2]
[391305486,1760491834577,-154.51,0.00013665,2]
[391305487,1760491834587,-714.96,0.00013677,2]
[391305488,1760491834596,-83.95150886,0.00013699,2]
[391305489,1760491834675,-457.45849114,0.00013699,2]
[391305490,1760491834684,-826.33180281,0.0001372,2]
[391305491,1760491834695,-373.66819719,0.0001372,2]
[391305492,1760491834704,-1200.0,0.00013721,2]
[391305493,1760491834713,-300.0,0.00013721,2]
[391305494,1760491834722,-300.0,0.00013721,2]
[391305495,1760491834731,-300.0,0.00013721,2]
[391305496,1760491834740,-150.0,0.00013722,2]
[391305497,1760491834749,-9999.99,0.00013722,2]
[391305498,1760491834759,-458.16,0.00013769,2]
[391305499,1760491834767,-1151.9,0.00013775,2]
[391305500,1760491834777,-1678.09,0.00013921,2]
[391305501,1760491834786,-1148.05,0.00013941,2]
[391305502,1760491834795,-474.58,0.00013941,2]
[391305503,1760491834804,-150.0,0.00013955,2]
[391305504,1760491834814,-151.0,0.00013956,2]
[391305505,1760491834823,-151.0,0.00013956,2]
[391305506,1760491834832,-151.0,0.00013956,2]
[391305507,1760491834841,-151.0,0.00013956,2]
[391305508,1760491834851,-151.0,0.00013956,2]
[391305509,1760491834860,-151.0,0.00013956,2]
[391305510,1760491834869,-151.0,0.00013956,2]
[391305511,1760491834878,-151.0,0.00013956,2]
[391305512,1760491834886,-151.0,0.00013956,2]
[391305513,1760491834895,-151.0,0.00013956,2]
[391305514,1760491834904,-151.0,0.00013956,2]
[391305515,1760491834913,-151.0,0.00013956,2]
[391305516,1760491834922,-151.0,0.00013956,2]
[391305517,1760491834931,-151.0,0.00013956,2]
[391305518,1760491834939,-151.0,0.00013956,2]
[391305519,1760491834949,-151.0,0.00013956,2]
[391305520,1760491834958,-151.0,0.00013956,2]
[391305521,1760491834967,-151.0,0.00013956,2]
[391305522,1760491834976,-200.0,0.00013956,2]
[391305523,1760491834987,-151.0,0.00013956,2]
[391305524,1760491834997,-151.0,0.00013956,2]
[391305525,1760491835006,-151.0,0.00013956,2]
[391305526,1760491835015,-151.0,0.00013956,2]
[391305527,1760491835025,-151.0,0.00013956,2]
[391305528,1760491835035,-151.0,0.00013956,2]
[391305529,1760491835044,-151.0,0.00013956,2]
[391305530,1760491835054,-151.0,0.00013956,2]
[391305531,1760491835063,-151.0,0.00013956,2]
[391305532,1760491835072,-151.0,0.00013956,2]
[391305533,1760491835081,-151.0,0.00013956,2]
[391305534,1760491835090,-151.0,0.00013956,2]
[391305535,1760491835099,-151.0,0.00013956,2]
[391305536,1760491835108,-151.0,0.00013956,2]
[391305537,1760491835117,-151.0,0.00013956,2]
[391305538,1760491835126,-151.0,0.00013956,2]
[391305539,1760491835136,-500.0,0.00013956,2]
[391305540,1760491835145,-500.0,0.00013956,2]
[391305541,1760491835154,-500.0,0.00013956,2]
[391305542,1760491835163,-500.0,0.00013956,2]
[391305543,1760491835173,-500.0,0.00013956,2]
[391305544,1760491835182,-500.0,0.00013956,2]
[391305545,1760491835191,-500.0,0.00013956,2]
[391305546,1760491835200,-500.0,0.00013956,2]
[391305547,1760491835209,-500.0,0.00013956,2]
[391305548,1760491835218,-369.58845228,0.00013956,2]
[391305549,1760491835230,-130.41154772,0.00013956,2]
[391305550,1760491835239,-500.0,0.00013956,2]
[391305551,1760491835248,-200.0,0.00013956,2]
[391305552,1760491835257,-200.0,0.00013956,2]
[391305553,1760491835266,-3000.0,0.00013964,2]
[391305554,1760491835275,-900.0,0.00013964,2]
[391305555,1760491835284,-666.0,0.00014092,3]
[391305556,1760491835293,-277.35679052,0.00014249,2]
[391305557,1760491835303,-322.6107,0.00014249,2]
[391305558,1760491835312,-1389.36,0.00014381,2]
[391305559,1760491835321,-643.21,0.00014381,2]
[391305560,1760491835330,-195.0,0.00014454,2]
[391305561,1760491835339,-250.0,0.00014454,2]
[391305562,1760491835349,-300.0,0.00014454,2]
[391305563,1760491835358,-300.0,0.00014454,2]
[391305564,1760491835367,-300.0,0.00014454,2]
[391305565,1760491835376,-300.0,0.00014454,2]
[391305566,1760491835385,-300.0,0.00014454,2]
[391305567,1760491835395,-300.0,0.00014454,2]
[391305568,1760491835405,-300.0,0.00014454,2]
[391305569,1760491835414,-225.34794022,0.00014454,2]
[391305570,1760491835424,-195.0,0.00014454,2]
[391305571,1760491835433,-195.0,0.00014454,2]
[391305572,1760491835442,-2000.0,0.00014454,2]
[391305573,1760491835452,-2039.25970873,0.00014454,2]
[391305574,1760491835461,-154.74,0.00014478,2]
[391305575,1760491835470,-286.93,0.00014478,2]
[391305576,1760491835479,-1104.0,0.00014641,2]
[391305577,1760491835488,-160.03,0.000147,2]
[391305578,1760491835498,-1104.0,0.00014734,2]
[391305579,1760491835510,-233.3191,0.00014783,2]
[391305580,1760491835519,-2049.6304,0.00014783,2]
[391305581,1760491835529,-1956.654,0.00014783,2]
[391305582,1760491835538,-5360.62143958,0.0001484,2]
[391305583,1760491835573,-3031.08736652,0.0001484,2]
[391305584,1760491835583,-2253.22,0.00014841,2]
[391305585,1760491835592,-520.55894287,0.00014873,2]
[391305586,1760491835603,-520.55894287,0.00014874,2]
[391305587,1760491835612,-520.55894287,0.00014875,2]
[391305588,1760491835621,-520.55894287,0.00014875,2]
[391305589,1760491835630,-520.55894287,0.00014876,2]
[391305590,1760491835639,-520.55894287,0.00014877,2]
[391305591,1760491835648,-520.55894287,0.00014878,2]
[391305592,1760491835657,-520.55894287,0.00014878,2]
[391305593,1760491835666,-520.55894287,0.00014879,2]
[391305594,1760491835675,-160.4358871,0.0001488,2]
[391305596,1760491835684,-200.0,0.0001488,2]
[391305598,1760491835694,-5000.0,0.0001488,2]
[391305600,1760491835703,-520.55894287,0.0001488,2]
[391305602,1760491835712,-212.69636834,0.0001488,2]
[391305604,1760491835721,-317.60870642,0.0001488,2]
[391305605,1760491835731,-2692.038069,0.0001488,2]
[391305606,1760491835740,-189.00810401,0.0001488,2]
[391305607,1760491835748,-426.12806302,0.0001488,2]
[391305608,1760491835757,-317.60870639,0.00014882,2]
[391305609,1760491835766,-426.12806301,0.00014883,2]
[391305610,1760491835775,-5800.0,0.00014883,2]
[391305611,1760491835784,-317.60870639,0.00014884,2]
[391305612,1760491835793,-426.12806301,0.00014886,2]
[391305613,1760491835803,-317.60870639,0.00014887,2]
[391305614,1760491835812,-317.60870639,0.00014889,2]
[391305615,1760491835821,-317.60870639,0.00014891,2]
[391305616,1760491835830,-317.60870639,0.00014893,2]
[391305618,1760491835839,-212.69636832,0.00014894,2]
[391305619,1760491835847,-317.60870639,0.00014896,2]
[391305620,1760491835856,-317.60870639,0.00014898,2]
[391305621,1760491835865,-726.80152984,0.000149,2]
[391305623,1760491835874,-706.78440735,0.000149,2]
[391305625,1760491835882,-661.18870589,0.000149,2]
[391305627,1760491835891,-317.60870639,0.000149,2]
[391305629,1760491835900,-212.69636832,0.00014907,2]
[391305631,1760491835909,-82843.0,0.00014959,2]
[391305634,1760491835918,-500.0,0.00014973,2]
[391305637,1760491835927,-249.10706081,0.00014973,2]
[391305638,1760491835936,-500.0,0.00014973,2]
[391305639,1760491835945,-500.0,0.00014973,2]
[391305640,1760491835954,-500.0,0.00014973,2]
[391305641,1760491835963,-500.0,0.00014973,2]
[391305642,1760491835972,-505.03963791,0.00014973,2]
[391305643,1760491835982,-500.0,0.00014973,2]
[391305644,1760491835991,-502.06544469,0.00014973,2]
[391305645,1760491836001,-7283.59957094,0.00014978,2]
[391305646,1760491836012,-1202.3944525,0.00014979,2]
[391305647,1760491836021,-898.1308315,0.00014979,2]
[391305648,1760491836030,-44142.4487342,0.00014979,2]
[391305649,1760491836039,-27637.6031211,0.00014979,2]
[391305650,1760491836048,-1419.1670263,0.00014979,2]
[391305651,1760491836059,-150.0,0.00014979,2]
[391305652,1760491836068,-666.0,0.00014979,2]
[391305653,1760491836077,-4697.692754,0.0001498,2]
[391305654,1760491836086,-1417.0,0.0001498,2]
[391305655,1760491836095,-213445.44423915,0.0001498,2]
[391305656,1760491836107,-3573.44968784,0.0001498,2]
[391305670,1760491839942,-313.92303194,0.00014512,2]
[391305671,1760491839953,-686.07696806,0.00014512,2]
[391305672,1760491839962,-73.72604397,0.00014889,2]
[391305675,1760491843301,-352.40201904,0.00014889,2]
[391305677,1760491843311,-95.74527175,0.00014891,2]
[391305678,1760491843323,-330.38279126,0.00014891,2]
[391305679,1760491843332,-87.66014994,0.00014972,2]
[391305680,1760491848499,-426.12806301,0.00014894,2]
[391305681,1760491848509,-412.33985006,0.00014972,2]
[391305682,1760491848522,-500.0,0.00014972,2]
[391305683,1760491848532,-500.0,0.00014972,2]
[391305684,1760491848541,-184.19678189,0.00014972,2]
[391305685,1760491848550,-1346.0,0.0001498,2]
[391305686,1760491848559,-259823.70216203,0.0001498,2]
[391305687,1760491848575,-498.18697912,0.0001498,2]
[391305688,1760491848627,-3533.926652,0.0001498,2]
[391305690,1760491865370,200.0,0.00030399,120]
[391305691,1760491916625,778.71664957,0.00030399,120]
[391305693,1760491948094,7087.75,0.00030399,120]
[391305694,1760491993865,500.0,0.00030399,120]
[391305695,1760491994137,274.15325587,0.00030399,120]
[391305696,1760492090961,10000.0,0.00030399,60]
[391305697,1760492111528,5787.77,0.00030399,60]
[391305698,1760492159974,12555.0,0.00030399,60]
[391305699,1760492163589,200.0,0.00030399,120]
[391305705,1760492338292,564.0,0.00030399,120]
[391305706,1760492345972,400.0,0.000272,120]
[391305707,1760492462574,200.0,0.00030399,120]
[391305708,1760492583005,500.0,0.00030399,120]
[391305709,1760492613843,500.0,0.00030399,120]
[391305710,1760492618292,500.0,0.00030399,120]
[391305711,1760492623246,500.0,0.00030399,120]
[391305712,1760492624682,500.0,0.00030399,120]